Cogmind - Beta 13 X1 @@@ ROGUE MODE // 2023.08.18 @ 14:19:42 Player: deadnoob Result: Destroyed by G-34 Mercenary with Small Laser Performance ------------- Evolutions (1) 500 Regions Visited (3) 600 Robots Destroyed (47) 235 Value Destroyed (1048) 1048 Prototype IDs (5) 100 Alien Tech Used (0) 0 Bonus (35) 35 TOTAL SCORE: 2518 Bonus ------- High Alert Combat Kills 35 Cogmind --------- Core Integrity 0/400 Matter 300/300 Energy 265/265 System Corruption 1% Temperature Cool (6) Movement Rolling (115) Ox1 Location -9/Materials Parts ------- > --- POWER (1) -------- Improved Ion Engine > --- PROPULSION (3) --- Light Treads Light Treads Compact Wheel > --- UTILITY (3) ------ Medium Storage Unit Melee Analysis Suite Medium Armor Plating > --- WEAPON (2) ------- Particle Cannon Hammer > --- INVENTORY (10) --- Transport Network Coupler Hacking Suite Heavy Assault Rifle Katana Peak State ------------ > --- POWER ------------ Improved Ion Engine > --- PROPULSION ------- Light Treads Light Treads Compact Wheel > --- UTILITY ---------- Medium Storage Unit Melee Analysis Suite Medium Armor Plating > --- WEAPON ----------- Particle Cannon Katana > --- INVENTORY -------- Transport Network Coupler Hacking Suite Heavy Assault Rifle Hammer [Rating: 16] Favorites ----------- Power Ion Engine Engine Ion Engine Propulsion Light Treads Treads Light Treads Leg Aluminum Leg Wheel Compact Wheel Utility Medium Storage Unit Device Seismic Detector Storage Medium Storage Unit Processor Melee Analysis Suite Protection Medium Armor Plating Weapon Small Laser Energy Gun Small Laser Energy Cannon Particle Cannon Launcher Grenade Launcher Impact Weapon Hammer Slashing Weapon Katana Build | -11 -10 -10 -9 ------- Run | Jun Mat Min Mat Slots Evolved 2 | . . . 2 Power . | . . . . Propulsion 1 | . . . 1 Utility 1 | . . . 1 Weapon . | . . . . Parts Attached 27 | . 5 2 20 Power 4 | . 1 . 3 Engine 4 | . 1 . 3 Core . | . . . . Reactor . | . . . . Propulsion 7 | . . 2 5 Treads 4 | . . 2 2 Leg 1 | . . . 1 Wheel 2 | . . . 2 Hover . | . . . . Flight . | . . . . Utility 8 | . 2 . 6 Device 3 | . 1 . 2 Storage 1 | . 1 . . Processor 1 | . . . 1 Hackware . | . . . . Protection 3 | . . . 3 Artifact . | . . . . Weapon 8 | . 2 . 6 Energy Gun 2 | . 1 . 1 Energy Cannon 1 | . . . 1 Ballistic Gun . | . . . . Ballistic Cannon . | . . . . Launcher 2 | . 1 . 1 Special Weapon . | . . . . Impact Weapon 2 | . . . 2 Slashing Weapon 1 | . . . 1 Piercing Weapon . | . . . . Special Melee Weapon . | . . . . Unidentified Prototypes . | . . . . Parts Lost 15 | . . 1 14 Power 3 | . . . 3 Propulsion 4 | . . 1 3 Utility 4 | . . . 4 Weapon 4 | . . . 4 Highest Loss Streak 11 | . . 1 11 To Critical Strikes . | . . . . Average Slot Usage (%) 91 | . 96 100 84 Engine 9 | . 14 14 6 Treads 15 | . . 22 20 Leg 9 | . 28 5 2 Wheel 4 | . . . 7 Device 8 | . 10 14 4 Storage 12 | . 14 14 11 Processor 2 | . . . 5 Protection 4 | . . . 8 Energy Gun 14 | . 19 28 5 Energy Cannon 2 | . . . 4 Launcher 2 | . 8 . . Impact Weapon 3 | . . . 6 Naked Turns . | . . . . Heaviest Build 30 | 10 20 19 30 Greatest Support 40 | 20 20 40 40 Greatest Overweight (x) 3 | . . . 3 Average Overweight (x) . | . . . . Largest Inventory Capacity 10 | . 10 10 10 Average Capacity 9 | . 8 10 10 Most Carried 8 | . 8 8 7 Average Carried 5 | . 7 7 3 Final Capacity 10 | 8 10 10 10 Final Carried 8 | 6 8 8 4 Class Distribution -------------------- 62% | Mutant 37% | Scavenger-Mutant Dominant Class ---------------- Mutant | -10/Materials Mutant | -10/Mines Scavenger-Mutant | -9/Materials Resources | -11 -10 -10 -9 ----------- Run | Jun Mat Min Mat Matter Collected 570 | 200 25 166 179 Remotely . | . . . . Salvage Created 1158 | . 121 85 952 Parts 66 | . 24 4 38 Haulers Intercepted 1 | . . . 1 Recyclers Shooed 1 | . . 1 . Parts Field Recycled . | . . . . Retrieved Matter . | . . . . Parts Self-Destructed . | . . . . Prevented . | . . . . Kills | -11 -10 -10 -9 ------- Run | Jun Mat Min Mat Combat Hostiles Destroyed 34 | . 12 1 21 Melee 6 | . . . 6 Guns 9 | . 1 1 7 AOE 15 | . 11 . 4 Classes Destroyed 12 | . 4 1 7 Worker 4 | . . 2 2 Builder 3 | . 1 . 2 Hauler 1 | . . . 1 Recycler 1 | . . . 1 Mechanic 1 | . . . 1 Operator 1 | . 1 . . Watcher 2 | . . . 2 Swarmer 13 | . 9 . 4 Grunt 16 | . 3 1 12 Brawler 1 | . . . 1 Duelist 2 | . . . 2 Sentry 2 | . . . 2 Best Kill Streak 16 | . 7 1 16 Combat Bots Only 12 | . 6 1 12 Max Kills in Single Turn 4 | . 3 1 4 Gunslinging . | . . . . Exploded 3 | . 3 . 3 Melee 1 | . . . 1 Uniques/NPCs Destroyed . | . . . . Combat | -11 -10 -10 -9 -------- Run | Jun Mat Min Mat Damage Taken 2042 | . 350 145 1547 Core 497 | . 75 14 408 Absorbed by Shields . | . . . . Redirected to Shielding 17 | . . . 17 Core Remaining (%) 82 | 100 . 64 . Volleys Fired 51 | . 18 11 22 Largest 2 | . 2 2 2 Hottest 90 | . 90 90 90 Shots Fired 88 | . 23 22 43 Gun 74 | . 10 22 42 Cannon . | . . . . Launcher 14 | . 13 . 1 Special . | . . . . Kinetic . | . . . . Thermal 74 | . 10 22 42 Explosive 14 | . 13 . 1 Electromagnetic . | . . . . Robot Hit Streak 10 | . 4 4 10 Robot Miss Streak 3 | . 3 3 2 Penetration Max . | . . . . Secondary Targets 3 | . . . 3 Max Gunslinging Chain 1 | . . . 1 Shots Hit Robots 87 | . 10 12 65 Core Hits 58 | . 20 6 32 Critical Kills . | . . . . Critical Parts Destroyed 5 | . . . 5 Critical Strikes 12 | . 1 1 10 Burn 7 | . 1 1 5 Smash 5 | . . . 5 Melee Attacks 51 | . . . 51 Impact 46 | . . . 46 Slashing 5 | . . . 5 Piercing . | . . . . Sneak Attacks 8 | . . . 8 Combat Hostiles . | . . . . Follow-up Attacks . | . . . . Damage Inflicted 3179 | . 828 157 2194 Guns 624 | . 85 157 382 Cannons . | . . . . Explosions 1328 | . 739 . 589 Melee 1223 | . . . 1223 Ramming 4 | . 4 . . Kinetic . | . . . . Thermal 1093 | . 85 157 851 Explosive 859 | . 739 . 120 Electromagnetic . | . . . . Impact 1061 | . . . 1061 Slashing 162 | . . . 162 Piercing . | . . . . Highest Corruption 1 | . . . 1 Average Corruption 1 | . . . 1 Corruption Purged . | . . . . Corruption Blocked . | . . . . Effects 3 | . . . 3 Message Errors 2 | . . . 2 Matter Fused 1 | . . . 1 Overload Shots . | . . . . Overflow Damage 405 | . . . 405 Projectiles . | . . . . Explosions 58 | . . . 58 Melee 347 | . . . 347 Knockbacks 6 | . . . 6 Impact 6 | . . . 6 Kinetic . | . . . . Secondary . | . . . . Self-Inflicted Damage 226 | . 95 . 131 Shots 6 | . 4 . 2 Rammed 1 | . . . 1 Targets Rammed 2 | . 1 . 1 Kicked 1 | . 1 . . Crushed . | . . . . Highest Temperature 283 | . 132 283 9 Average Temperature 76 | . 47 105 4 Received Heat Transfer 720 | . 66 90 564 Effects 1 | . . 1 . Energy Bleed 1 | . . 1 . Siege Activations . | . . . . Robots Corrupted . | . . . . Combat Hostiles . | . . . . Parts Fried 12 | . . . 12 Impact Corruptions 15 | . . . 15 Robots Melted . | . . . . Combat Hostiles . | . . . . Parts Melted 7 | . . 2 5 Heat Transferred 2393 | . 285 471 1637 Parts Sabotaged . | . . . . Parts Stolen . | . . . . Parts Stripped . | . . . . Power Chain Reactions . | . . . . Missiles Intercepted . | . . . . Alert | -11 -10 -10 -9 ------- Run | Jun Mat Min Mat Peak Influence 508 | . 428 196 508 Initial 166 | . . 166 76 Average 230 | . 168 187 282 Maximum Alert Level 2 | . 2 . 2 Low Security (%) 53 | . 67 100 24 Level 1 36 | . 25 . 57 Level 2 10 | . 7 . 17 Level 3 . | . . . . Level 4 . | . . . . Level 5 . | . . . . High Security . | . . . . Max Security . | . . . . Squads Dispatched 3 | . 2 . 1 Investigation 2 | . 1 . 1 Extermination . | . . . . Reinforcement 1 | . 1 . . Assault . | . . . . Garrison . | . . . . Intercept . | . . . . Searches Triggered . | . . . . Construction Impeded . | . . . . Haulers Reinforced . | . . . . Active Scanning Responses . | . . . . Cargo Convoy Interrupts . | . . . . Stealth | -11 -10 -10 -9 --------- Run | Jun Mat Min Mat Distress Signals 3 | . . . 3 Communications Jammed . | . . . . Distress Signals . | . . . . Times Spotted 52 | . 15 2 35 Peak Tracking Total 10 | . 6 2 10 Tactical Retreats 1 | . . . 1 Traps | -11 -10 -10 -9 ------- Run | Jun Mat Min Mat Traps Triggered 1 | . . . 1 Indirectly . | . . . . Trap Hack Attempts . | . . . . Triggered . | . . . . Disarmed . | . . . . Reprogrammed . | . . . . Reused . | . . . . Traps Extracted . | . . . . Installed . | . . . . Triggered . | . . . . Machines | -11 -10 -10 -9 ---------- Run | Jun Mat Min Mat Machines Disabled 4 | . 2 . 2 Max in Single Turn 1 | . 1 . 1 Machines Repaired . | . . . . Machines Sabotaged . | . . . . Overloaded Fab Kills . | . . . . Hacking | -11 -10 -10 -9 --------- Run | Jun Mat Min Mat Machines Accessed 8 | . 3 . 5 Terminals 8 | . 3 . 5 Fabricators . | . . . . Repair Stations . | . . . . Recycling Units . | . . . . Scanalyzers . | . . . . Garrison Access . | . . . . Total Hacks 29 | . 9 . 20 Successful 15 | . 4 . 11 Failed 14 | . 5 . 9 Catastrophic 1 | . . . 1 Database Lockouts . | . . . . Manual 20 | . 7 . 13 Terminals 29 | . 9 . 20 Fabricators . | . . . . Repair Stations . | . . . . Recycling Units . | . . . . Scanalyzers . | . . . . Garrison Access . | . . . . Terminal Hacks 12 | . 4 . 8 Robot Analysis 5 | . 2 . 3 Prototype ID Bank 3 | . 1 . 2 Unreport Threat 1 | . . . 1 Locate Traps 1 | . 1 . . Hauler Manifests 1 | . . . 1 Zone Layout 1 | . . . 1 Fabricator Hacks . | . . . . Repair Station Hacks . | . . . . Recycling Unit Hacks . | . . . . Scanalyzer . | . . . . Garrison Access Hacks . | . . . . Unauthorized Hacks 3 | . . . 3 Terminals 3 | . . . 3 Track 1 | . . . 1 Botnet 1 | . . . 1 Operators 1 | . . . 1 Fabricators . | . . . . Repair Stations . | . . . . Recycling Units . | . . . . Scanalyzers . | . . . . Garrison Access . | . . . . Data Cores Recovered 1 | . 1 . . Used . | . . . . Hacking Detections 8 | . 3 . 5 Full Trace Events 1 | . 1 . . Feedback Events . | . . . . Feedback Blocked . | . . . . Robot Schematics Acquired . | . . . . Robots Built . | . . . . Authchips . | . . . . Time . | . . . . Total Robot Build Rating . | . . . . Part Schematics Acquired . | . . . . Parts Built . | . . . . Authchips . | . . . . Time . | . . . . Total Part Build Rating . | . . . . Parts Repaired . | . . . . Time . | . . . . Parts Recycled . | . . . . Recycled Matter . | . . . . Retrieved Matter . | . . . . Retrieved Components . | . . . . Parts Scanalyzed . | . . . . Part Schematics Acquired . | . . . . Parts Damaged . | . . . . Bothacking | -11 -10 -10 -9 ------------ Run | Jun Mat Min Mat Used RIF Installer . | . . . . Robots Hacked . | . . . . Non-combat . | . . . . Combat . | . . . . Robot Hacks Applied . | . . . . Relay Couplers Released . | . . . . Fabnet Peak Effective % . | . . . . Robots Rewired . | . . . . Allies Hacked . | . . . . Hacks Repelled . | . . . . Allies | -11 -10 -10 -9 -------- Run | Jun Mat Min Mat Total Allies . | . . . . Largest Group . | . . . . Highest-Rated Group . | . . . . Highest-Rated Ally . | . . . . Total Orders . | . . . . Ally Attacks . | . . . . Total Damage . | . . . . Kills . | . . . . Allies Corrupted . | . . . . Allies Melted . | . . . . Intel | -11 -10 -10 -9 ------- Run | Jun Mat Min Mat Robot Analysis Total 5 | . 2 . 3 Derelict Logs Recovered 1 | . . 1 . Drone Launches . | . . . . Drone Recoveries . | . . . . Exploration | -11 -10 -10 -9 ------------- Run | Jun Mat Min Mat Turns Passed 1181 | . 316 265 600 Spaces Moved 608 | 1 218 122 267 Core 1 | . . . 1 Treads 149 | . . 106 43 Legs 235 | 1 218 16 . Wheels 223 | . . . 223 Hover . | . . . . Flight . | . . . . Fastest Speed 100 | 120 120 120 100 Average Speed 125 | 120 120 154 117 Slowest Speed 200 | 120 120 160 200 Overloaded Moves . | . . . . Propulsion Burnouts . | . . . . Robots Hopped . | . . . . Cave-ins Triggered . | . . . . Exploration Rate (%) 20 | 1 35 25 22 Regions Visited 3 Branch Regions 1 Pre-discovered Areas . | . . . . Known Exits Taken . | . . . . Unknown Exits Taken 3 | 1 1 1 . Scrap Searched . | . . . . Spaces Dug 9 | . 6 . 3 Terrain Destroyed 121 | . 101 . 20 Melee 3 | . . . 3 Projectile . | . . . . AOE 118 | . 101 . 17 Terrain Rammed . | . . . . Walls Destroyed . | . . . . Machines Disabled . | . . . . Actions | -11 -10 -10 -9 --------- Run | Jun Mat Min Mat Total 840 | . 248 176 416 Wait 92 | . 2 39 51 Move 605 | . 217 121 267 Hop . | . . . . Pick Up 9 | . 3 2 4 Fast Attach 10 | . 1 . 9 Attach 9 | . . 1 8 Detach . | . . . . Swap 8 | . 4 1 3 Drop 3 | . 2 1 . Fire 51 | . 18 11 22 Melee 51 | . . . 51 Ram . | . . . . Kick 1 | . 1 . . Crush 1 | . . . 1 Escape Stasis . | . . . . Rewire . | . . . . Trap . | . . . . Miscellaneous . | . . . . Route ------- -11/Junkyard -10/Materials (discovered 2 exits: *Mat / [*Min]) -10/Mines (discovered 2 exits: *Mat / [*Sub]) -9/Materials (discovered 1 exit: [*Sto]) History --------- Turn | Location | Event 1 | -11/Junkyard | Discovered new exit (range 0) 1 | -11/Junkyard | Entered Materials 1 | -10/Materials | Discovered new exit (range 17) 180 | -10/Materials | Discovered new exit (range 15) 317 | -10/Materials | Entered Mines 318 | -10/Mines | Met a Derelict bent on vengeance 320 | -10/Mines | Build established: Mutant 322 | -10/Mines | Discovered new exit (range 11) 328 | -10/Mines | Learned Materials terminal intel 536 | -10/Mines | Discovered new exit (range 5) 582 | -10/Mines | Entered Materials 582 | -9/Materials | Evolved 2 slots: Propulsion x1, Utility x1 583 | -9/Materials | Loaded intel: 12 terminal locations 744 | -9/Materials | Core integrity fell below 50% 804 | -9/Materials | Destroyed 12 combat bots 805 | -9/Materials | Lost 11 parts (2p3n3u3w) 846 | -9/Materials | Core integrity fell below 20% 980 | -9/Materials | Discovered new exit (range 5) 1039 | -9/Materials | Build established: Scavenger-Mutant 1182 | -9/Materials | Destroyed by G-34 Mercenary with Small Laser Last Messages --------------- 01085_ Destroyed Flight Unit. 01085_ S-10 Pest system corrupted by crushing effect. 01086_ S-10 Pest system terminally corrupted. 01086_ Lgt. Ion Engine fried. 01090_ S-10 Pest destroyed. 01096_ Acquired 10 matter. 01098_ W-16 Scout sends out distress signal. 01116_ Sneak attack on T-07 Excavator. 01116_ Destroyed Wheel. 01116_ T-07 Excavator system corrupted by crushing effect. 01116_ T-07 Excavator knocked back. 01128_ System corrupted: Matter fused (-10). 01129_ G-34 Mercenary suffers critical hit (Smash). 01129_ Destroyed Sml. Laser. 01129_ G-34 Mercenary system corrupted by crushing effect. 01129_ Aluminum Leg fried. 01129_ G-34 Mercenary destroyed. 01133_ Acquired 10 matter. 01147_ Sneak attack on A-02 Transporter. 01180_ G-34 Mercenary knocked back. Map ----- +----------------------------------------------------+ | ???# %!* %# # #??????????????????????? | | ???# %%= #"######### ##?????????????????????? | | ???##"#####+########## #?????????????????????? | | ????#### %%% #?????????????????????? | | ???##### % #?????????????????????? | | #?????????????????????? | | ########## ######## !#?????????????????????? | | ??????????# ######### ##?????????????????????? | | ??????????# # #?# #??????????????????????? | | ?????????## # """ #?#a #??????????????????????? | | ?????????#T =#="T" #?# #??????????????????????? | | ?????????## # #?# #??????????????????????? | | ?????????#T #%""" #?# #??????????????????????? | | ?????????##u #!""" #?# #??????????????????????? | | ???+####### # """ #?# #????????????????#?????? | | ???? #% #?# #??????????????? #?????? | | ?##### # """ #?# #??????????????? #?????? | | ?????# # """ #?# #?????????????? #?????? | | ?????# # """ #?# #?????????????? #?????? | | ?????# [[[ # #?# !#????????????? #?????? | | ?##### [[[ ###+##### % ############## #?????? | | [[[ % % % #####?? | | % / | | =%[ % #####?? | | ################/######g############### #?????? | | ?# #??# #*%@ ##??????? #?????? | | ?# #??# """# #???????? #?????? | | ?# #??# """# k #???????? ????? | | ?# #??# """# #?####### ???? | | ?# #??# # #?# # """ ??? | | ?+ ##?# "" # ### #? """ ? | | ?# #?# "T # +% < #? """ ? | | ?# ##?# "" ]# ### !#? ???? | | ?# #??# # #?# #? ???? | | ?##########??###################### ##? "??????? | | ? """ """ #?????????????# # #???"??????? | | ? """ """ #?????????????# # #??????????? | | ? """ """ #?????????????# + #??????????? | | ? #?????????????# # #??????????? | | ? #?????????????# # #??????????? | | ? ""T"" #?????????????# ?# #??????????? | | ? """"" #?????????????# ?# #??????????? | | ? #?????????????# ??# #??????????? | | ?###############????????########??# #??????????? | | ?# #???????????????#??# #??????????? | | ?# #??????????######o?# #??????????? | | ?# """ """ """ #??????????# ??# #??????????? | | ??????????????????????????????????? #??????????? | | ??????????????????????????????????? #??????????? | | ??????????????????????????????????? #??????????? | +----------------------------------------------------+ Best States ------------- Heat Dissipation 42 Energy Generation 12 Energy Capacity 265 Matter Stores 300 Matter Capacity 300 Sight Range 16 Terrain Scan Density 10 Armor Coverage 225 Core Shielding 20 Evasion (%) 55 Melee Accuracy 5 Recoil Reduction 2 Item Schematics ----------------- None Robot Schematics ------------------ None Fabricated ------------ Nothing Alien Tech Used ----------------- None Achievements -------------- None Challenges ------------ None Game ------ Seed ImpulseMultinovaScreen Manual? 0 Play Time 00:12:00 Cumulative 238.6 hours Start 2023.08.18 @ 14:07:18 End 2023.08.18 @ 14:19:42 Sessions 1 Manual Loads 0 Difficulty Rogue Special Mode None Game No. 321 Rogue 321 Adventurer 0 Explorer 0 Win Type - Total 7 Types 6/0/0/1/0/0/0/0/0 Lore% 81 Gallery% 86 Achievement% 69 Wizard Run 0 Options --------- ASCII 0 Keyboard 1 Movement Numpad Keybinds 0 Fullscreen 2 Font 18/SmallcapsGlow Map View 76x50 Tactical HUD 1 Map Filters NONE Filters NONE Steam 1 RUN: da066932-d166-48e8-a51c-c5bba2a6ef5d